fUST/lending_fUST_20240228
["ID","MTS","AMOUNT","RATE_DAILY","PERIOD"]
[315519119,1709111433176,-155.04961588,0.00019032,2]
[315519121,1709111433185,-620.0,0.00019033,2]
[315519123,1709111433195,-190.38238204,0.00019078,2]
[315519125,1709111433204,-9746.70313319,0.00019078,2]
[315519130,1709111433243,-10995.15779231,0.00019078,2]
[315519132,1709111433253,-453.92,0.00019168,3]
[315519134,1709111433262,-6240.38193243,0.00019175,4]
[315519136,1709111433272,-160.0,0.00019177,2]
[315519138,1709111433282,-501.09958662,0.00019178,2]
[315519140,1709111433291,-500.0,0.00019178,2]
[315519142,1709111433300,-181.28258829,0.00019178,2]
[315519144,1709111433309,-500.0,0.00019178,2]
[315519146,1709111433318,-500.0,0.00019178,2]
[315519148,1709111433328,-500.69773059,0.00019178,2]
[315519150,1709111433337,-500.44679118,0.00019178,2]
[315519152,1709111433348,-500.91536367,0.00019178,2]
[315519154,1709111433358,-281.9515854,0.00019178,2]
[315519156,1709111433367,-521.66214826,0.00019178,2]
[315519158,1709111433376,-387.15825645,0.00019178,2]
[315519160,1709111433386,-500.92658779,0.00019178,2]
[315519162,1709111433395,-500.0,0.00019178,2]
[315519164,1709111433405,-500.0,0.00019178,2]
[315519166,1709111433416,-1001.0296485,0.00019178,2]
[315519168,1709111433426,-500.0,0.00019178,2]
[315519170,1709111433436,-500.0,0.00019178,2]
[315519172,1709111433445,-500.3888229,0.00019178,2]
[315519174,1709111433455,-291.10162555,0.00019178,2]
[315519176,1709111433465,-500.0,0.00019178,2]
[315519178,1709111433475,-682.55,0.00019178,2]
[315519180,1709111433484,-503.40830356,0.00019178,2]
[315519182,1709111433494,-200.0,0.00019178,2]
[315519184,1709111433503,-500.0,0.00019178,2]
[315519186,1709111433512,-439.42595651,0.00019178,2]
[315519188,1709111433521,-500.50290126,0.00019178,2]
[315519189,1709111433530,-500.0,0.00019178,2]
[315519192,1709111433540,-500.0,0.00019178,2]
[315519194,1709111433549,-500.0,0.00019178,2]
[315519195,1709111433558,-500.0,0.00019178,2]
[315519198,1709111433567,-500.0,0.00019178,2]
[315519200,1709111433577,-500.0,0.00019178,2]
[315519202,1709111433586,-478.59713654,0.00019178,2]
[315519203,1709111433595,-500.55275279,0.00019178,2]
[315519205,1709111433604,-504.2419818,0.00019178,2]
[315519207,1709111433613,-500.46472047,0.00019178,2]
[315519209,1709111433624,-500.31096572,0.00019178,2]
[315519210,1709111433635,-500.90692191,0.00019178,2]
[315519211,1709111433644,-500.0,0.00019178,2]
[315519212,1709111433653,-500.0,0.00019178,2]
[315519213,1709111433665,-500.41351955,0.00019178,2]
[315519214,1709111433675,-500.44415095,0.00019178,2]
[315519215,1709111433684,-500.0,0.00019178,2]
[315519216,1709111433694,-406.64607477,0.00019178,2]
[315519217,1709111433705,-500.0,0.00019178,2]
[315519218,1709111433718,-500.72039266,0.00019178,2]
[315519219,1709111433729,-500.0,0.00019178,2]
[315519220,1709111433740,-504.92316322,0.00019178,2]
[315519221,1709111433750,-500.0,0.00019178,2]
[315519222,1709111433760,-500.48132889,0.00019178,2]
[315519223,1709111433770,-500.17505704,0.00019178,2]
[315519224,1709111433780,-501.20052606,0.00019178,2]
[315519225,1709111433789,-500.0,0.00019178,2]
[315519226,1709111433798,-500.0,0.00019178,2]
[315519227,1709111433808,-300.62222051,0.00019178,2]
[315519229,1709111433817,-501.6599369,0.00019178,2]
[315519230,1709111433827,-231.81109289,0.00019178,2]
[315519231,1709111433836,-500.19721423,0.00019178,2]
[315519233,1709111433845,-500.0,0.00019178,2]
[315519235,1709111433854,-797.62,0.00019178,2]
[315519237,1709111433863,-500.67378752,0.00019178,2]
[315519239,1709111433873,-572.10161387,0.00019178,2]
[315519241,1709111433882,-500.53748996,0.00019178,2]
[315519243,1709111433892,-604.88625747,0.00019178,2]
[315519244,1709111433901,-500.74845288,0.00019178,2]
[315519246,1709111433913,-500.0,0.00019178,2]
[315519248,1709111433922,-500.0,0.00019178,2]
[315519249,1709111433932,-500.0,0.00019178,2]
[315519251,1709111433941,-503.93725877,0.00019178,2]
[315519253,1709111433950,-500.51938974,0.00019178,2]
[315519255,1709111433959,-500.0,0.00019178,2]
[315519256,1709111433967,-500.0,0.00019178,2]
[315519257,1709111433977,-501.03088296,0.00019178,2]
[315519258,1709111433987,-500.0,0.00019178,2]
[315519260,1709111433996,-501.31366854,0.00019178,2]
[315519262,1709111434005,-581.6924563,0.00019178,2]
[315519264,1709111434014,-500.0,0.00019178,2]
[315519266,1709111434023,-502.11209839,0.00019178,2]
[315519268,1709111434032,-451.4417783,0.00019178,2]
[315519320,1709111437945,-126.87108957,0.00019178,2]
[315519321,1709111437955,-500.0,0.00019178,2]
[315519322,1709111437965,-9.15881421,0.00019178,2]
[315519323,1709111437977,-492.01022913,0.00019178,2]
[315519324,1709111437986,-504.10606793,0.00019178,2]
[315519325,1709111437995,-500.0,0.00019178,2]
[315519326,1709111438005,-500.52339344,0.00019178,2]
[315519327,1709111438014,-647.96689022,0.00019178,2]
[315519328,1709111438023,-500.0,0.00019178,2]
[315519329,1709111438033,-335.59961587,0.00019178,2]
[315519330,1709111438043,-500.0,0.00019178,2]
[315519331,1709111438052,-500.0,0.00019178,2]
[315519332,1709111438062,-500.0,0.00019178,2]
[315519333,1709111438072,-501.38977468,0.00019178,2]
[315519334,1709111438081,-151.0,0.00019178,2]
[315519335,1709111438091,-151.0,0.00019178,2]
[315519336,1709111438101,-151.0,0.00019178,2]
[315519338,1709111438110,-253.184714,0.00019178,2]
[315519339,1709111438120,-502.81425453,0.00019178,2]
[315519341,1709111438129,-500.0,0.00019178,2]
[315519343,1709111438138,-240.55861573,0.00019178,2]
[315519344,1709111438147,-502.09186025,0.00019178,2]
[315519345,1709111438156,-197.76,0.00019178,2]
[315519346,1709111438168,-500.0,0.00019178,2]
[315519347,1709111438177,-545.17171984,0.00019178,2]
[315519348,1709111438186,-500.0,0.00019178,2]
[315519349,1709111438196,-500.0,0.00019178,2]
[315519350,1709111438206,-500.77081558,0.00019178,2]
[315519351,1709111438215,-500.0,0.00019178,2]
[315519352,1709111438225,-500.0,0.00019178,2]
[315519353,1709111438234,-500.27449883,0.00019178,2]
[315519354,1709111438243,-501.95650605,0.00019178,2]
[315519355,1709111438253,-500.0,0.00019178,2]
[315519356,1709111438262,-501.09576801,0.00019178,2]
[315519357,1709111438272,-500.0,0.00019178,2]
[315519358,1709111438281,-500.0,0.00019178,2]
[315519359,1709111438291,-179.65307351,0.00019178,2]
[315519360,1709111438301,-501.13130839,0.00019178,2]
[315519361,1709111438310,-501.5242163,0.00019178,2]
[315519362,1709111438320,-500.0,0.00019178,2]
[315519363,1709111438329,-501.20780093,0.00019178,2]
[315519364,1709111438339,-502.24633887,0.00019178,2]
[315519365,1709111438350,-502.53901986,0.00019178,2]
[315519366,1709111438359,-500.50375247,0.00019178,2]
[315519367,1709111438370,-500.0,0.00019178,2]
[315519368,1709111438380,-500.0,0.00019178,2]
[315519369,1709111438390,-503.01168124,0.00019178,2]
[315519370,1709111438399,-500.0,0.00019178,2]
[315519371,1709111438409,-7.96588146,0.00019178,2]
[315519372,1709111438425,-495.0863917,0.00019178,2]
[315519373,1709111438434,-391.73540002,0.00019178,2]
[315519374,1709111438444,-500.0,0.00019178,2]
[315519375,1709111438453,-443.88223375,0.00019178,2]
[315519376,1709111438463,-368.65578206,0.00019178,2]
[315519377,1709111438472,-500.96026853,0.00019178,2]
[315519378,1709111438482,-500.0,0.00019178,2]
[315519379,1709111438491,-909.63,0.00019178,2]
[315519380,1709111438501,-182.44518102,0.00019178,2]
[315519381,1709111438510,-178.11388434,0.00019178,2]
[315519382,1709111438520,-502.04432248,0.00019178,2]
[315519383,1709111438529,-501.59375545,0.00019178,2]
[315519384,1709111438538,-502.50326818,0.00019178,2]
[315519385,1709111438549,-233.24678447,0.00019178,2]
[315519386,1709111438558,-500.0,0.00019178,2]
[315519387,1709111438568,-500.0,0.00019178,2]
[315519388,1709111438578,-500.0,0.00019178,2]
[315519389,1709111438588,-504.10467702,0.00019178,2]
[315519390,1709111438597,-506.94337512,0.00019178,2]
[315519391,1709111438607,-500.0,0.00019178,2]
[315519392,1709111438616,-500.0,0.00019178,2]
[315519393,1709111438626,-500.0,0.00019178,2]
[315519394,1709111438635,-496.95713463,0.00019178,2]
[315519395,1709111438644,-500.0,0.00019178,2]
[315519396,1709111438653,-500.0,0.00019178,2]
[315519397,1709111438664,-500.0,0.00019178,2]
[315519398,1709111438674,-531.95433738,0.00019178,2]
[315519399,1709111438684,-518.75420416,0.00019178,2]
[315519400,1709111438693,-500.66994977,0.00019178,2]
[315519401,1709111438702,-500.0,0.00019178,2]
[315519402,1709111438711,-699.999991,0.00019178,2]
[315519403,1709111438720,-699.999991,0.00019178,2]
[315519404,1709111438730,-699.999991,0.00019178,2]
[315519405,1709111438740,-699.999991,0.00019178,2]
[315519406,1709111438748,-699.999991,0.00019178,2]
[315519407,1709111438758,-699.999991,0.00019178,2]
[315519408,1709111438767,-502.4545534,0.00019178,2]
[315519409,1709111438776,-500.0,0.00019178,2]
[315519410,1709111438785,-500.77480301,0.00019178,2]
[315519411,1709111438795,-500.0,0.00019178,2]
[315519412,1709111438805,-500.0,0.00019178,2]
[315519413,1709111438814,-2159.84,0.00019178,2]
[315519414,1709111438823,-311.35947859,0.00019178,2]
[315519415,1709111438833,-500.0,0.00019178,2]
[315519416,1709111438841,-623.85,0.00019178,2]
[315519417,1709111438850,-500.0,0.00019178,2]
[315519418,1709111438859,-500.0,0.00019178,2]
[315519419,1709111438868,-255.333918,0.00019178,2]
[315519420,1709111438878,-1294.21,0.00019178,2]
[315519421,1709111438887,-504.49468671,0.00019178,2]
[315519422,1709111438896,-500.0,0.00019178,2]
[315519423,1709111438905,-500.0,0.00019178,2]
[315519424,1709111438914,-500.0,0.00019178,2]
[315519425,1709111438923,-151.0,0.00019178,2]
[315519426,1709111438933,-500.0,0.00019178,2]
[315519427,1709111438942,-500.469271,0.00019178,2]
[315519428,1709111438951,-691.85,0.00019178,2]
[315519429,1709111438960,-1239.6,0.00019178,2]
[315519430,1709111438970,-583.47,0.00019178,2]
[315519431,1709111438978,-500.0,0.00019178,2]
[315519432,1709111438988,-720.87,0.00019178,2]
[315519433,1709111438997,-500.42379287,0.00019178,2]
[315519434,1709111439006,-1716.4,0.00019178,2]
[315519435,1709111439015,-500.0,0.00019178,2]
[315519436,1709111439024,-1861.81,0.00019178,2]
[315519437,1709111439033,-1692.11,0.00019178,2]
[315519438,1709111439042,-500.0,0.00019178,2]
[315519439,1709111439051,-500.0,0.00019178,2]
[315519440,1709111439060,-500.0,0.00019178,2]
[315519441,1709111439070,-500.0,0.00019178,2]
[315519442,1709111439079,-500.0,0.00019178,2]
[315519443,1709111439089,-500.0,0.00019178,2]
[315519444,1709111439098,-500.0,0.00019178,2]
[315519445,1709111439108,-502.42257796,0.00019178,2]
[315519446,1709111439118,-500.0,0.00019178,2]
[315519447,1709111439127,-9275.53,0.00019178,2]
[315519448,1709111439137,-500.0,0.00019178,2]
[315519449,1709111439146,-500.0,0.00019178,2]
[315519450,1709111439157,-500.0,0.00019178,2]
[315519451,1709111439167,-517.59582117,0.00019178,2]
[315519452,1709111439176,-500.0,0.00019178,2]
[315519453,1709111439185,-500.74399266,0.00019178,2]
[315519454,1709111439194,-500.0,0.00019178,2]
[315519455,1709111439203,-500.0,0.00019178,2]
[315519456,1709111439213,-151.0,0.00019178,2]
[315519457,1709111439223,-151.0,0.00019178,2]
[315519458,1709111439232,-151.0,0.00019178,2]
[315519459,1709111439241,-151.0,0.00019178,2]
[315519460,1709111439250,-501.00160868,0.00019178,2]
[315519461,1709111439260,-9905.32,0.00019178,2]
[315519462,1709111439270,-500.0,0.00019178,2]
[315519463,1709111439279,-502.21343226,0.00019178,2]
[315519464,1709111439288,-500.0,0.00019178,2]
[315519465,1709111439299,-500.65965486,0.00019178,2]
[315519466,1709111439308,-500.0,0.00019178,2]
[315519467,1709111439317,-166.66589949,0.00019178,2]
[315519468,1709111439328,-500.0,0.00019178,2]
[315519469,1709111439338,-491.48540046,0.00019178,2]
[315519470,1709111439453,-501.05554997,0.00019178,2]
[315519471,1709111439463,-500.0,0.00019178,2]
[315519472,1709111439472,-500.83846107,0.00019178,2]
[315519473,1709111439482,-151.0,0.00019178,2]
[315519474,1709111439491,-500.0,0.00019178,2]
[315519475,1709111439501,-501.7416097,0.00019178,2]
[315519476,1709111439511,-757.31,0.00019178,2]
[315519477,1709111439520,-500.0,0.00019178,2]
[315519478,1709111439529,-500.0,0.00019178,2]
[315519479,1709111439538,-331.46900188,0.00019178,2]
[315519480,1709111439547,-501.84779554,0.00019178,2]
[315519481,1709111439557,-500.0,0.00019178,2]
[315519482,1709111439566,-500.42367522,0.00019178,2]
[315519483,1709111439575,-386.73410752,0.00019178,2]
[315519484,1709111439589,-113.26589248,0.00019178,2]
[315519485,1709111439598,-1495.39,0.00019178,2]
[315519486,1709111439607,-500.0,0.00019178,2]
[315519487,1709111439616,-627.22041209,0.00019178,2]
[315519488,1709111439626,-640.67979213,0.00019178,2]
[315519489,1709111439635,-639.27419173,0.00019178,2]
[315519490,1709111439644,-856.87,0.00019178,2]
[315519491,1709111439653,-501.6087865,0.00019178,2]
[315519492,1709111439664,-500.0,0.00019178,2]
[315519493,1709111439673,-501.29943299,0.00019178,2]
[315519494,1709111439683,-500.0,0.00019178,2]
[315519495,1709111439691,-1410.97,0.00019178,2]
[315519496,1709111439701,-500.0,0.00019178,2]
[315519497,1709111439709,-5183.3,0.00019178,2]
[315519498,1709111439718,-500.0,0.00019178,2]
[315519499,1709111439728,-500.0,0.00019178,2]
[315519500,1709111439737,-927.47,0.00019178,2]
[315519501,1709111439747,-500.0,0.00019178,2]
[315519503,1709111439756,-2194.81,0.00019178,2]
[315519504,1709111439765,-666.67,0.00019178,2]
[315519505,1709111439774,-500.0,0.00019178,2]
[315519506,1709111439783,-995.56,0.00019178,2]
[315519507,1709111439792,-500.63893705,0.00019178,2]
[315519508,1709111439801,-500.0,0.00019178,2]
[315519509,1709111439810,-501.10178602,0.00019178,2]
[315519510,1709111439819,-506.97104522,0.00019178,2]
[315519512,1709111439828,-994.53,0.00019178,2]
[315519514,1709111439838,-464.93,0.00019178,2]
[315519516,1709111439847,-500.0,0.00019178,2]
[315519518,1709111439857,-500.0,0.00019178,2]
[315519520,1709111439866,-500.0,0.00019178,2]
[315519522,1709111439876,-494.04272442,0.00019178,2]
[315519523,1709111439885,-500.0,0.00019178,2]
[315519524,1709111439894,-500.0,0.00019178,2]
[315519525,1709111439903,-162.238783,0.00019178,2]
[315519526,1709111439912,-166.666666,0.00019178,2]
[315519527,1709111439922,-154.0332292,0.000192,2]
[315519528,1709111439932,-500.0,0.00019376,2]
[315519529,1709111439940,-493.069484,0.000194,8]
[315519530,1709111439950,-580.0,0.000194,2]
[315519531,1709111439958,-500.56954616,0.00019452,2]
[315519532,1709111439967,-200.87654283,0.00019452,2]
[315519533,1709111439977,-500.0,0.00019452,2]
[315519534,1709111439986,-500.0,0.00019452,2]
[315519535,1709111439995,-500.0,0.00019452,2]
[315519536,1709111440004,-501.47682934,0.00019452,2]
[315519537,1709111440014,-501.86045569,0.00019452,2]
[315519538,1709111440023,-682.55,0.00019452,2]
[315519540,1709111440032,-209.05110805,0.00019452,2]
[315519542,1709111440041,-532.5196323,0.00019452,2]
[315519544,1709111440050,-500.0,0.00019452,2]
[315519545,1709111440059,-500.0,0.00019452,2]
[315519546,1709111440068,-501.00877242,0.00019452,2]
[315519548,1709111440078,-500.0,0.00019452,2]
[315519549,1709111440088,-501.70846252,0.00019452,2]
[315519550,1709111440097,-500.0,0.00019452,2]
[315519551,1709111440106,-502.8274011,0.00019452,2]
[315519552,1709111440115,-500.0,0.00019452,2]
[315519553,1709111440124,-292.78131651,0.00019452,2]
[315519554,1709111440134,-500.0,0.00019452,2]
[315519555,1709111440143,-500.0,0.00019452,2]
[315519556,1709111440152,-500.0,0.00019452,2]
[315519557,1709111440161,-315.47716668,0.00019452,2]
[315519558,1709111440172,-797.62,0.00019452,2]
[315519559,1709111440181,-500.0,0.00019452,2]
[315519560,1709111440189,-500.0,0.00019452,2]
[315519561,1709111440201,-503.43631335,0.00019452,2]
[315519562,1709111440210,-502.18873382,0.00019452,2]
[315519563,1709111440219,-480.9675675,0.00019452,2]
[315519564,1709111440228,-500.87407908,0.00019452,2]
[315519565,1709111440238,-501.38910291,0.00019452,2]
[315519566,1709111440247,-500.0,0.00019452,2]
[315519567,1709111440257,-500.0,0.00019452,2]
[315519568,1709111440266,-500.88782879,0.00019452,2]
[315519569,1709111440275,-500.0,0.00019452,2]
[315519570,1709111440288,-500.0,0.00019452,2]
[315519571,1709111440297,-501.58530506,0.00019452,2]
[315519572,1709111440307,-502.37866244,0.00019452,2]
[315519573,1709111440316,-501.64027508,0.00019452,2]
[315519574,1709111440327,-500.0,0.00019452,2]
[315519575,1709111440336,-439.16904591,0.00019452,2]
[315519576,1709111440347,-500.55535055,0.00019452,2]
[315519577,1709111440357,-500.0,0.00019452,2]
[315519578,1709111440366,-500.0,0.00019452,2]
[315519579,1709111440376,-500.0,0.00019452,2]
[315519580,1709111440386,-500.0,0.00019452,2]
[315519581,1709111440395,-500.0,0.00019452,2]
[315519582,1709111440404,-909.63,0.00019452,2]
[315519583,1709111440415,-546.28699567,0.00019452,2]
[315519584,1709111440426,-500.0,0.00019452,2]
[315519585,1709111440435,-500.0,0.00019452,2]
[315519587,1709111440445,-500.0,0.00019452,2]
[315519588,1709111440454,-500.0,0.00019452,2]
[315519589,1709111440463,-500.0,0.00019452,2]
[315519590,1709111440472,-503.0714665,0.00019452,2]
[315519591,1709111440481,-699.999991,0.00019452,2]
[315519592,1709111440491,-699.999991,0.00019452,2]
[315519593,1709111440500,-699.999991,0.00019452,2]
[315519594,1709111440510,-699.999991,0.00019452,2]
[315519595,1709111440519,-699.999991,0.00019452,2]
[315519596,1709111440532,-699.999991,0.00019452,2]
[315519597,1709111440542,-699.999991,0.00019452,2]
[315519598,1709111440552,-699.999991,0.00019452,2]
[315519599,1709111440561,-500.0,0.00019452,2]
[315519600,1709111440571,-2159.84,0.00019452,2]
[315519601,1709111440582,-623.85,0.00019452,2]
[315519602,1709111440591,-1294.21,0.00019452,2]
[315519603,1709111440601,-691.85,0.00019452,2]
[315519604,1709111440610,-1239.6,0.00019452,2]
[315519605,1709111440620,-583.47,0.00019452,2]
[315519606,1709111440629,-500.0,0.00019452,2]
[315519607,1709111440638,-720.87,0.00019452,2]
[315519608,1709111440648,-1716.4,0.00019452,2]
[315519609,1709111440657,-500.0,0.00019452,2]
[315519610,1709111440666,-1861.81,0.00019452,2]
[315519611,1709111440675,-1692.11,0.00019452,2]
[315519612,1709111440684,-500.0,0.00019452,2]
[315519613,1709111440693,-500.0,0.00019452,2]
[315519615,1709111440702,-500.0,0.00019452,2]
[315519617,1709111440711,-501.78305312,0.00019452,2]
[315519618,1709111440720,-292.65312441,0.00019452,2]
[315519619,1709111440729,-500.0,0.00019452,2]
[315519620,1709111440739,-9275.53,0.00019452,2]
[315519621,1709111440748,-501.95677342,0.00019452,2]
[315519622,1709111440757,-500.0,0.00019452,2]
[315519624,1709111440766,-415.23605833,0.00019452,2]
[315519625,1709111440775,-151.0,0.00019452,2]
[315519627,1709111440784,-151.0,0.00019452,2]
[315519628,1709111440793,-9905.32,0.00019452,2]
[315519629,1709111440802,-500.65373184,0.00019452,2]
[315519630,1709111440811,-500.0,0.00019452,2]
[315519631,1709111440820,-644.46285568,0.00019452,2]
[315519632,1709111440829,-500.0,0.00019452,2]
[315519634,1709111440838,-500.0,0.00019452,2]
[315519635,1709111440848,-151.0,0.00019452,2]
[315519637,1709111440857,-267.43966617,0.00019452,2]
[315519639,1709111440866,-757.31,0.00019452,2]
[315519640,1709111440876,-344.56861591,0.00019452,2]
[315519642,1709111440885,-500.0,0.00019452,2]
[315519643,1709111440895,-309.66288351,0.00019452,2]
[315519645,1709111440905,-1495.39,0.00019452,2]
[315519647,1709111440916,-500.0,0.00019452,2]
[315519649,1709111440926,-856.87,0.00019452,2]
[315519650,1709111440935,-500.0,0.00019452,2]
[315519651,1709111440945,-500.0,0.00019452,2]
[315519652,1709111440954,-1410.97,0.00019452,2]
[315519653,1709111440964,-438.84763469,0.00019452,2]
[315519654,1709111440973,-5183.3,0.00019452,2]
[315519655,1709111440983,-500.0,0.00019452,2]
[315519656,1709111440992,-927.47,0.00019452,2]
[315519657,1709111441001,-502.61395722,0.00019452,2]
[315519658,1709111441010,-2194.81,0.00019452,2]
[315519659,1709111441019,-666.67,0.00019452,2]
[315519660,1709111441029,-500.0,0.00019452,2]
[315519661,1709111441038,-995.56,0.00019452,2]
[315519662,1709111441047,-502.07688249,0.00019452,2]
[315519663,1709111441056,-994.53,0.00019452,2]
[315519664,1709111441065,-500.0,0.00019452,2]
[315519665,1709111441074,-500.0,0.00019452,2]
[315519666,1709111441084,-155.0,0.00019479,2]
[315519667,1709111441093,-500.0,0.00019575,2]
[315519668,1709111441102,-166.666666,0.00019627,2]
[315519669,1709111441112,-500.0,0.00019726,2]
[315519670,1709111441121,-682.55,0.00019726,2]
[315519671,1709111441131,-502.55102291,0.00019726,2]
[315519672,1709111441140,-503.20960449,0.00019726,2]
[315519673,1709111441149,-500.0,0.00019726,2]
[315519674,1709111441158,-500.0,0.00019726,2]
[315519675,1709111441168,-500.0,0.00019726,2]
[315519676,1709111441177,-797.62,0.00019726,2]
[315519677,1709111441186,-500.0,0.00019726,2]
[315519678,1709111441195,-500.0,0.00019726,2]
[315519679,1709111441206,-500.0,0.00019726,2]
[315519680,1709111441215,-477.41417459,0.00019726,2]
[315519681,1709111441224,-500.0,0.00019726,2]
[315519682,1709111441235,-509.4579801,0.00019726,2]
[315519683,1709111441246,-500.0,0.00019726,2]
[315519684,1709111441256,-434.80036403,0.00019726,2]
[315519685,1709111441267,-500.0,0.00019726,2]
[315519686,1709111441277,-500.0,0.00019726,2]
[315519687,1709111441287,-909.63,0.00019726,2]
[315519688,1709111441297,-576.1236502,0.00019726,2]
[315519689,1709111441307,-500.0,0.00019726,2]
[315519690,1709111441318,-500.0,0.00019726,2]
[315519691,1709111441331,-500.0,0.00019726,2]
[315519692,1709111441341,-500.0,0.00019726,2]
[315519693,1709111441351,-699.999991,0.00019726,2]
[315519694,1709111441360,-699.999991,0.00019726,2]
[315519695,1709111441370,-699.999991,0.00019726,2]
[315519696,1709111441380,-699.999991,0.00019726,2]
[315519697,1709111441390,-699.999991,0.00019726,2]
[315519698,1709111441399,-700.00000067,0.00019726,2]
[315519699,1709111441408,-2159.84,0.00019726,2]
[315519700,1709111441419,-623.85,0.00019726,2]
[315519701,1709111441428,-1294.21,0.00019726,2]
[315519702,1709111441438,-691.85,0.00019726,2]
[315519703,1709111441447,-1239.6,0.00019726,2]
[315519704,1709111441457,-583.47,0.00019726,2]
[315519705,1709111441466,-720.87,0.00019726,2]
[315519706,1709111441475,-1716.4,0.00019726,2]
[315519707,1709111441484,-500.0,0.00019726,2]
[315519708,1709111441494,-1861.81,0.00019726,2]
[315519709,1709111441504,-1692.11,0.00019726,2]
[315519710,1709111441512,-500.0,0.00019726,2]
[315519711,1709111441522,-500.0,0.00019726,2]
[315519712,1709111441532,-500.0,0.00019726,2]
[315519713,1709111441540,-500.0,0.00019726,2]
[315519714,1709111441550,-9275.53,0.00019726,2]
[315519715,1709111441559,-502.30122655,0.00019726,2]
[315519716,1709111441568,-9905.32,0.00019726,2]
[315519717,1709111441577,-198.03830105,0.00019726,2]
[315519718,1709111441585,-500.0,0.00019726,2]
[315519719,1709111441595,-500.0,0.00019726,2]
[315519720,1709111441603,-757.31,0.00019726,2]
[315519721,1709111441612,-506.16712789,0.00019726,2]
[315519722,1709111441621,-1495.39,0.00019726,2]
[315519723,1709111441630,-500.0,0.00019726,2]
[315519724,1709111441639,-856.87,0.00019726,2]
[315519725,1709111441647,-500.0,0.00019726,2]
[315519726,1709111441656,-500.0,0.00019726,2]
[315519727,1709111441667,-1410.97,0.00019726,2]
[315519728,1709111441676,-2927.6558809,0.00019726,2]
[315519729,1709111441690,-2255.6441191,0.00019726,2]
[315519730,1709111441699,-366.33533854,0.00019726,2]
[315519731,1709111441708,-927.47,0.00019726,2]
[315519732,1709111441717,-2194.81,0.00019726,2]
[315519733,1709111441726,-666.67,0.00019726,2]
[315519734,1709111441735,-462.60597992,0.00019726,2]
[315519735,1709111441744,-995.56,0.00019726,2]
[315519736,1709111441752,-994.53,0.00019726,2]
[315519737,1709111441761,-500.0,0.00019726,2]
[315519738,1709111441770,-500.0,0.00019726,2]
[315519739,1709111441779,-500.0,0.00019775,2]
[315519740,1709111441788,-190.38238203,0.000199,2]
[315519741,1709111441797,-7295.97421157,0.0001995,2]
[315519742,1709111441809,-936.05014462,0.0001995,2]
[315519743,1709111441819,-500.0,0.00019974,2]
[315519744,1709111441828,-620.0,0.00019985,2]
[315519745,1709111441836,-175.5,0.0002,2]
[315519746,1709111441845,-3271.19426212,0.0002,2]
[315519747,1709111441857,-8073.34366994,0.0002,2]
[315519748,1709111441866,-682.55,0.0002,2]
[315519749,1709111441875,-500.0,0.0002,2]
[315519750,1709111441884,-397.59929179,0.0002,2]
[315519897,1709111446961,-553.14999995,0.00018407,2]
[315519910,1709111447180,-665.0,0.00018407,2]
[315519911,1709111447244,-1079.07724722,0.00018407,2]
[315519912,1709111447256,-5362.500005,0.00018407,2]
[315519913,1709111447268,-5930.9,0.00018407,2]
[315519934,1709111753136,257.2851364,0.00027397,120]
[315519974,1709112009707,24900.0,0.00017436,2]
[315519975,1709112073545,-155.0294556,0.00017686,2]